bitfinex-derivatives/quotes_BTCF0:USTF0_20240829
["timestamp","ask_amount","ask_price","bid_price","bid_amount"]
[1724939497883,0.443563,60398.0,60397.0,0.00024833]
[1724939498284,0.443563,60398.0,60397.0,0.08301233]
[1724939498285,0.3598,60398.0,60397.0,0.08301233]
[1724939498493,0.8608,60405.0,60404.0,0.082755]
[1724939498790,0.8608,60405.0,60397.0,0.00024833]
[1724939498791,0.5,60414.0,60405.0,0.082753]
[1724939498992,0.39,60413.0,60403.0,0.3608]
[1724939499186,0.3608,60409.0,60403.0,0.3608]
[1724939499581,0.082751,60407.0,60403.0,0.3608]
[1724939499786,0.3608,60409.0,60406.0,0.082752]
[1724939500086,0.3608,60409.0,60408.0,0.082749]
[1724939500290,0.00024833,60410.0,60409.0,0.082748]
[1724939500797,0.08299633,60410.0,60404.0,0.082754]
[1724939500997,0.08299633,60410.0,60406.0,0.001]
[1724939500998,0.082751,60407.0,60406.0,0.001]
[1724939501799,0.511,60409.0,60408.0,0.082749]
[1724939501999,0.011,60409.0,60406.0,0.001]
[1724939502401,0.011,60409.0,60408.0,0.526298]
[1724939502894,0.00024833,60410.0,60409.0,0.082748]
[1724939503090,0.00924833,60410.0,60409.0,0.663096]
[1724939503285,0.00924833,60410.0,60409.0,1.263096]
[1724939503993,0.00024833,60410.0,60409.0,1.262096]
[1724939504391,0.00024833,60410.0,60409.0,0.579348]
[1724939504593,0.00024833,60410.0,60409.0,0.082748]
[1724939505395,0.00024833,60410.0,60409.0,0.083748]
[1724939505396,0.01024833,60410.0,60409.0,0.083748]
[1724939506400,0.01024833,60410.0,60409.0,0.001]
[1724939506401,0.45379533,60410.0,60409.0,0.001]
[1724939506589,0.50458691,60410.0,60409.0,0.001]
[1724939506997,1.00458691,60410.0,60409.0,0.001]
[1724939508085,0.56103991,60410.0,60409.0,0.001]
[1724939508287,0.06103991,60410.0,60409.0,0.083748]
[1724939508493,0.01024833,60410.0,60409.0,0.527296]
[1724939509498,0.01024833,60410.0,60409.0,1.623896]
[1724939509697,0.5,60422.0,60421.0,0.082731]
[1724939510903,0.39,60429.0,60421.0,0.082731]
[1724939510904,0.00024833,60428.0,60427.0,0.082723]
[1724939511088,0.00024833,60428.0,60427.0,0.443523]
[1724939511289,0.5,60439.0,60428.0,0.082722]
[1724939511485,0.14828034,60447.0,60438.0,0.3608]
[1724939511686,0.14828034,60445.0,60438.0,0.3608]
[1724939511995,0.64828034,60445.0,60444.0,0.0827]
[1724939512296,0.59126472,60445.0,60444.0,0.0827]
[1724939512903,0.04049895,60445.0,60444.0,0.0827]
[1724939513089,0.04049895,60445.0,60439.0,0.082707]
[1724939513403,0.04049895,60445.0,60444.0,0.0827]
[1724939513588,0.04049895,60445.0,60444.0,0.57902]
[1724939513899,0.00024833,60451.0,60443.0,0.3608]
[1724939514100,0.0404945,60450.0,60449.0,0.082693]
[1724939514490,0.4012945,60450.0,60445.0,0.082699]
[1724939514796,0.4012945,60450.0,60443.0,0.3608]
[1724939514797,0.0404945,60449.0,60443.0,0.3608]
[1724939515299,0.1231875,60449.0,60443.0,0.3618]
[1724939515499,0.12319055,60448.0,60447.0,0.082695]
[1724939515995,0.082695,60448.0,60447.0,0.082695]
[1724939516199,0.12318978,60448.0,60447.0,0.082695]
[1724939516598,0.1739481,60448.0,60447.0,0.082695]
[1724939516987,0.0912531,60448.0,60443.0,0.3618]
[1724939517194,0.22128867,60447.0,60446.0,0.082697]
[1724939517394,0.27204699,60447.0,60446.0,0.443497]
[1724939517602,0.00024833,60451.0,60450.0,0.082692]
[1724939517795,0.082695,60448.0,60446.0,0.36164]
[1724939517999,0.09124451,60447.0,60443.0,0.001]
[1724939518300,0.09124451,60447.0,60441.0,0.3608]
[1724939518301,0.04049135,60446.0,60445.0,0.082699]
[1724939518606,0.03949135,60446.0,60445.0,0.082699]
[1724939518991,0.03949135,60446.0,60441.0,0.443504]
[1724939519195,0.24693135,60442.0,60441.0,0.443504]
[1724939519401,0.05075316,60444.0,60443.0,0.083701]
[1724939519700,0.0827,60445.0,60444.0,0.0827]
[1724939520304,0.13344716,60449.0,60443.0,0.001]
[1724939520509,0.05075316,60449.0,60448.0,0.082695]
[1724939520706,0.08293933,60451.0,60449.0,0.082693]
[1724939520905,0.08293933,60451.0,60446.0,0.3608]
[1724939520906,0.082695,60449.0,60446.0,0.3608]
[1724939521109,0.0827,60444.0,60443.0,0.0837]
[1724939521408,0.05075316,60444.0,60443.0,0.0837]
[1724939521599,0.18053249,60447.0,60446.0,0.165394]
[1724939521801,0.00144834,60451.0,60450.0,0.165384]
[1724939522108,0.08047542,60451.0,60450.0,0.330768]
[1724939522301,0.18053249,60459.0,60458.0,0.165362]
[1724939522505,0.3608,60471.0,60470.0,0.082664]
[1724939522696,0.3608,60471.0,60466.0,0.082669]
[1724939522903,0.082668,60468.0,60467.0,0.082669]
[1724939523203,0.443464,60471.0,60470.0,0.082664]
[1724939523709,0.60734543,60471.0,60470.0,0.082664]
[1724939523905,0.52468143,60471.0,60470.0,0.082664]
[1724939524100,0.3608,60471.0,60470.0,0.082664]
[1724939524905,0.3608,60471.0,60462.0,0.16988812]
[1724939525116,0.082688,60454.0,60445.0,0.0038]
[1724939525415,0.3608,60466.0,60444.0,0.53044]
[1724939525416,0.3608,60466.0,60452.0,0.3608]
[1724939525710,0.3608,60466.0,60464.0,0.082673]
[1724939525711,0.5,60465.0,60464.0,0.082673]
[1724939526012,0.3608,60466.0,60465.0,0.082671]
[1724939526206,0.5,60471.0,60465.0,0.3608]
[1724939526513,0.08267,60466.0,60465.0,0.3608]
[1724939526700,0.3608,60467.0,60463.0,0.082673]
[1724939527709,0.3608,60467.0,60465.0,0.001]
[1724939527912,0.5,60466.0,60465.0,0.001]
[1724939528311,0.3608,60467.0,60465.0,0.001]
[1724939528606,0.21608536,60466.0,60465.0,0.001]
[1724939529198,0.21608536,60466.0,60444.0,0.3608]
[1724939529199,0.082678,60460.0,60444.0,0.3608]
[1724939529404,0.082686,60455.0,60442.0,0.16964]
[1724939529705,0.081686,60454.0,60446.0,0.3608]
[1724939530008,0.3608,60452.0,60445.0,0.082697]
[1724939530305,0.3608,60452.0,60440.0,0.3608]
[1724939530306,0.082702,60443.0,60442.0,0.00024812]
[1724939530508,0.082716,60433.0,60425.0,0.4485]
[1724939530710,0.18016012,60432.0,60430.0,0.082719]
[1724939530914,0.18016012,60432.0,60431.0,0.082718]
[1724939531299,0.082724,60427.0,60426.0,0.082724]
[1724939531505,0.05076041,60431.0,60425.0,0.3608]
[1724939531807,0.05076041,60430.0,60425.0,0.3608]
[1724939532115,0.18027004,60427.0,60426.0,0.082725]
[1724939532305,0.18027004,60427.0,60425.0,0.3608]
[1724939532306,0.18027004,60429.0,60428.0,0.082722]
[1724939532609,0.23104254,60430.0,60429.0,0.082721]
[1724939532813,0.0507725,60432.0,60431.0,0.082718]
[1724939533010,0.05002814,60432.0,60431.0,0.443518]
[1724939533217,0.05002814,60432.0,60431.0,1.622676]
[1724939533517,2.7e-07,60437.0,60436.0,0.165422]
[1724939533817,0.001,60452.0,60451.0,0.08269]
[1724939534118,0.00084,60455.0,60453.0,0.082686]
[1724939534314,0.50084,60460.0,60453.0,0.082686]
[1724939534609,0.08268,60459.0,60448.0,0.00024812]
[1724939534810,0.082693,60449.0,60448.0,0.00024812]
[1724939535111,0.3608,60452.0,60449.0,0.082692]
[1724939535315,0.3608,60452.0,60448.0,0.00024812]
[1724939535612,0.082693,60449.0,60448.0,0.00024812]
[1724939536117,0.082693,60449.0,60448.0,0.44374312]
[1724939536409,0.082693,60449.0,60448.0,0.36104812]
[1724939536615,0.14200614,60449.0,60448.0,0.00024812]
[1724939537208,0.22469914,60449.0,60448.0,0.00024812]
[1724939537713,0.22369914,60449.0,60448.0,0.00024812]
[1724939537906,0.577973,60449.0,60432.0,0.3608]
[1724939538109,0.082734,60420.0,60418.0,0.0038]
[1724939538411,0.05077539,60419.0,60418.0,0.082736]
[1724939538612,0.082732,60421.0,60418.0,0.082736]
[1724939538913,0.081732,60421.0,60418.0,0.082736]
[1724939539322,0.00024812,60426.0,60420.0,0.082733]
[1724939539815,0.08273,60422.0,60421.0,0.082731]
[1724939540021,0.00024812,60426.0,60421.0,0.08273]
[1724939540223,0.082726,60425.0,60417.0,0.3608]
[1724939540515,0.00088,60428.0,60427.0,0.082723]
[1724939540716,0.00084,60443.0,60442.0,0.082703]
[1724939541015,0.002,60449.0,60442.0,0.082703]
[1724939541016,0.05076655,60444.0,60443.0,0.082701]
[1724939541213,0.05276655,60449.0,60447.0,0.082695]
[1724939541416,0.05276655,60449.0,60442.0,0.3608]
[1724939541620,0.05276655,60449.0,60448.0,0.443495]
[1724939541817,0.002,60449.0,60448.0,0.443495]
[1724939542136,0.00024812,60452.0,60443.0,0.26924]
[1724939542309,0.05101467,60452.0,60442.0,0.3608]
[1724939542514,0.082694,60449.0,60442.0,0.3608]
[1724939542706,0.082695,60448.0,60444.0,0.0827]
[1724939542912,0.082695,60448.0,60446.0,0.3608]
[1724939543213,0.082696,60447.0,60446.0,0.3608]
[1724939543512,0.082705,60440.0,60439.0,0.00024812]
[1724939543712,0.16541,60440.0,60439.0,0.00024812]
[1724939544013,0.16541,60440.0,60434.0,0.3608]
[1724939544014,0.5,60439.0,60434.0,0.3608]
[1724939544217,0.05076595,60438.0,60434.0,0.3608]
[1724939544508,0.05076595,60438.0,60434.0,0.443513]
[1724939544509,0.081711,60437.0,60434.0,0.443513]
[1724939544714,0.443503,60442.0,60431.0,0.082718]
[1724939544914,0.082716,60432.0,60430.0,0.00024812]
[1724939545112,0.082718,60431.0,60430.0,0.00024812]
[1724939545821,0.081718,60431.0,60430.0,0.00024812]
[1724939546914,0.003,60438.0,60430.0,0.00024812]
[1724939547124,0.082718,60431.0,60430.0,0.00024812]
[1724939548217,0.087718,60431.0,60430.0,0.00124812]
[1724939549119,0.088718,60431.0,60430.0,0.00124812]
[1724939549706,0.171436,60431.0,60430.0,0.00124812]
[1724939549907,0.088718,60431.0,60430.0,0.00124812]
[1724939550116,0.088718,60431.0,60430.0,0.08396712]
[1724939550521,0.088718,60431.0,60430.0,0.00124812]
[1724939551422,0.171436,60431.0,60430.0,0.00124812]
[1724939551619,0.165436,60431.0,60430.0,0.00024812]
[1724939551815,0.087718,60431.0,60430.0,0.00124812]
[1724939552014,0.587718,60431.0,60430.0,0.00124812]
[1724939552220,0.63848915,60431.0,60430.0,0.00124812]
[1724939552513,0.05577115,60431.0,60430.0,0.44376712]
[1724939552819,0.088718,60431.0,60430.0,0.36204812]
[1724939553020,0.171436,60431.0,60430.0,0.00124812]
[1724939553430,0.165436,60431.0,60430.0,0.00024812]
[1724939553716,0.171436,60431.0,60430.0,0.00124812]
[1724939554517,0.532236,60431.0,60430.0,0.00124812]
[1724939555325,0.531236,60431.0,60430.0,0.00124812]
[1724939555716,0.58201201,60431.0,60430.0,0.00124812]
[1724939556317,0.531236,60431.0,60430.0,0.00124812]
[1724939556823,0.526236,60431.0,60430.0,0.00024812]
[1724939557137,0.526236,60431.0,60430.0,0.00124812]
[1724939557138,0.531236,60431.0,60430.0,0.00124812]
[1724939557922,0.613954,60431.0,60430.0,0.00124812]
[1724939558119,0.66472954,60431.0,60430.0,0.00124812]
[1724939558423,0.613954,60431.0,60430.0,0.00124812]
[1724939558624,0.005,60431.0,60430.0,0.08396712]
[1724939559027,0.08271,60437.0,60434.0,0.082713]
[1724939559212,0.08271,60437.0,60430.0,0.00124812]
[1724939559213,0.004,60431.0,60430.0,0.00124812]
[1724939559529,0.004,60431.0,60430.0,0.08396712]
[1724939559720,0.004,60431.0,60430.0,0.66312612]
[1724939559916,0.082707,60439.0,60438.0,0.082708]
[1724939560324,0.05076783,60441.0,60440.0,0.082705]
[1724939561124,0.501,60442.0,60441.0,0.082704]
[1724939561329,0.00024812,60443.0,60442.0,0.082703]
[1724939563929,0.00024812,60443.0,60441.0,0.001]
[1724939563930,0.36104812,60443.0,60441.0,0.001]
[1724939564129,0.082703,60442.0,60430.0,0.00024812]
[1724939564433,0.582703,60442.0,60430.0,0.00024812]
[1724939564623,0.582703,60442.0,60430.0,0.01766339]
[1724939564624,0.082709,60438.0,60430.0,0.01766339]
[1724939564929,0.165436,60431.0,60430.0,0.00024812]
[1724939565120,0.3608,60435.0,60420.0,0.3608]
[1724939565121,0.082731,60421.0,60420.0,0.3608]
[1724939565627,0.3608,60425.0,60414.0,0.3608]
[1724939565824,0.5,60424.0,60414.0,0.3608]
[1724939566126,0.08297412,60425.0,60414.0,0.3608]
[1724939566329,0.00024812,60425.0,60414.0,0.3608]
[1724939566630,0.082728,60424.0,60420.0,0.3608]
[1724939567727,0.082728,60424.0,60414.0,0.3618]
[1724939567932,0.082733,60420.0,60414.0,0.3618]
[1724939568429,0.082733,60420.0,60419.0,0.3608]
[1724939568630,0.082733,60420.0,60414.0,0.3618]
[1724939568830,0.08274,60415.0,60414.0,0.001]
[1724939569028,0.082753,60406.0,60404.0,0.3608]
[1724939569331,0.082753,60405.0,60404.0,0.3608]
[1724939570031,0.39,60406.0,60388.0,0.3608]
[1724939570232,0.3608,60390.0,60382.0,0.01811324]
[1724939570416,0.3608,60390.0,60380.0,0.3608]
[1724939570622,0.082786,60381.0,60380.0,0.3608]
[1724939570823,0.080789,60379.0,60378.0,0.04933492]
[1724939571425,0.13160555,60379.0,60378.0,0.04933492]
[1724939571729,0.075789,60379.0,60370.0,0.1103]
[1724939571935,0.13359955,60384.0,60370.0,0.1103]
[1724939572230,0.13359955,60384.0,60381.0,0.3608]
[1724939572434,0.082783,60384.0,60381.0,0.3608]
[1724939572633,0.082783,60384.0,60373.0,0.3608]
[1724939573435,0.001,60379.0,60373.0,0.3608]
[1724939573821,0.001,60379.0,60378.0,0.3608]
[1724939574229,0.001,60384.0,60378.0,0.3608]
[1724939574935,0.002,60379.0,60378.0,0.3608]
[1724939575134,0.002,60379.0,60378.0,0.85768]
[1724939575329,0.002,60379.0,60378.0,0.3608]
[1724939575830,0.002,60379.0,60370.0,0.47202]
[1724939576023,0.002,60379.0,60370.0,0.4711]
[1724939576327,0.082796,60374.0,60370.0,0.4711]
[1724939576631,0.082801,60370.0,60369.0,0.0173311]
[1724939576823,0.082801,60370.0,60357.0,0.16656]
[1724939576824,0.7508,60371.0,60355.0,0.01768889]
[1724939577021,0.7508,60371.0,60353.0,0.47302]
[1724939577022,0.082821,60356.0,60353.0,0.47302]
[1724939577229,0.082823,60354.0,60353.0,0.4721]
[1724939577424,0.082818,60359.0,60353.0,0.4721]
[1724939577628,0.00024834,60361.0,60353.0,0.1113]
[1724939577831,0.082819,60357.0,60353.0,0.1113]
[1724939578036,0.1047,60360.0,60352.0,0.3608]
[1724939578336,0.082822,60356.0,60352.0,0.3608]
[1724939579238,0.00024834,60361.0,60352.0,0.3608]
[1724939579531,0.082816,60359.0,60358.0,0.3608]
[1724939579733,0.082822,60356.0,60352.0,0.3608]
[1724939580340,0.08282,60357.0,60352.0,0.3608]
[1724939580540,0.00124834,60361.0,60356.0,0.3608]
[1724939580838,0.00124834,60361.0,60359.0,0.3328]
[1724939580839,0.00024834,60361.0,60359.0,0.3328]
[1724939581026,0.0038,60378.0,60360.0,0.249415]
[1724939581227,0.9735,60384.0,60360.0,0.249415]
[1724939581228,0.082788,60380.0,60372.0,0.3608]
[1724939581426,0.4735,60384.0,60372.0,0.3608]
[1724939581836,0.082794,60376.0,60369.0,0.1151]
[1724939582029,0.082792,60377.0,60369.0,0.1151]
[1724939582231,0.00024834,60379.0,60369.0,0.1151]
[1724939582432,0.08303834,60379.0,60369.0,0.1151]
[1724939582627,0.08279,60378.0,60369.0,0.1151]
[1724939583035,0.44359,60378.0,60369.0,0.1151]
[1724939583238,0.0828,60371.0,60369.0,0.1151]
[1724939584439,0.082801,60370.0,60369.0,0.1151]
[1724939585139,0.082806,60367.0,60366.0,0.00024834]
[1724939585644,0.082806,60367.0,60366.0,0.36104834]
[1724939585945,0.082801,60371.0,60366.0,0.36104834]
[1724939586243,0.082801,60371.0,60370.0,0.3608]
[1724939586933,0.3608,60371.0,60366.0,0.00024834]
[1724939587235,0.609218,60367.0,60366.0,0.00024834]
[1724939587437,0.609218,60367.0,60366.0,3.4e-07]
[1724939587638,0.692024,60367.0,60366.0,3.4e-07]
[1724939587843,1.788984,60367.0,60366.0,3.4e-07]
[1724939588036,2.288984,60367.0,60366.0,3.4e-07]
[1724939588649,2.288984,60367.0,60343.0,0.0038]
[1724939588650,0.082837,60344.0,60343.0,0.0038]
[1724939588834,0.7216,60344.0,60333.0,0.1062]
[1724939589030,0.082851,60334.0,60333.0,0.1062]
[1724939589446,0.082857,60330.0,60323.0,0.3287]
[1724939589747,0.082857,60330.0,60326.0,0.3608]
[1724939589950,0.08286,60328.0,60326.0,0.3608]
[1724939590133,0.00024857,60333.0,60324.0,0.10712]
[1724939590439,0.00024857,60333.0,60321.0,0.00096]
[1724939590440,0.082867,60322.0,60321.0,0.00096]
[1724939590641,0.082867,60322.0,60317.0,0.01733374]
[1724939590843,0.082867,60322.0,60316.0,0.49736]
[1724939591046,0.3608,60331.0,60316.0,0.49736]
[1724939591343,0.3608,60326.0,60315.0,0.3608]
[1724939591547,0.082875,60317.0,60315.0,0.3608]
[1724939591752,0.082875,60317.0,60308.0,0.47112]
[1724939592043,0.082875,60317.0,60308.0,0.48764036]
[1724939592235,0.00024857,60319.0,60308.0,0.48764036]
[1724939592437,0.00024857,60319.0,60314.0,0.3608]
[1724939592647,0.3608,60326.0,60314.0,0.3608]
[1724939593242,0.5038,60338.0,60319.0,0.3608]
[1724939593243,0.5,60337.0,60319.0,0.3608]
[1724939593538,0.3608,60340.0,60319.0,0.3608]
[1724939593744,0.00024857,60334.0,60322.0,0.00024857]
[1724939593945,0.082857,60330.0,60322.0,0.00024857]
[1724939594142,0.3608,60329.0,60322.0,0.00024857]
[1724939596238,0.443658,60329.0,60322.0,0.00024857]
[1724939596442,0.082858,60329.0,60322.0,0.00024857]
[1724939596641,0.44390057,60334.0,60322.0,0.00024857]
[1724939597143,0.44390057,60334.0,60322.0,0.08311557]
[1724939597651,0.44389957,60334.0,60322.0,0.00024857]
[1724939597839,0.44389957,60334.0,60322.0,0.08311557]
[1724939598341,0.44389957,60334.0,60322.0,0.00024857]
[1724939598854,0.44389957,60334.0,60325.0,0.082862]
[1724939599240,0.44389957,60334.0,60326.0,0.082862]
[1724939599440,0.00024857,60334.0,60331.0,0.3608]
[1724939599749,0.3608,60340.0,60322.0,0.13340949]
[1724939599941,0.082852,60333.0,60323.0,0.17088]
[1724939600147,0.3608,60340.0,60327.0,0.443659]
[1724939600452,0.3608,60340.0,60327.0,0.3608]
[1724939600742,0.44389257,60340.0,60335.0,0.3608]
[1724939600946,0.00024857,60340.0,60335.0,0.3608]
[1724939601139,0.00024857,60340.0,60339.0,0.082844]
[1724939601654,0.082817,60359.0,60349.0,0.082829]
[1724939601945,0.00084,60359.0,60355.0,0.3608]
[1724939602170,0.3608,60369.0,60358.0,0.082818]
[1724939602541,0.00024857,60370.0,60363.0,0.08281]
[1724939602744,0.00024857,60370.0,60367.0,0.3608]
[1724939603043,0.00024857,60370.0,60367.0,0.443605]
[1724939603248,0.00024857,60370.0,60369.0,0.443603]
[1724939603452,0.00024857,60370.0,60369.0,0.614483]
[1724939603453,1e-08,60370.0,60369.0,0.614483]
[1724939603655,1e-08,60370.0,60369.0,1.711403]
[1724939603944,1e-08,60370.0,60369.0,1.111403]
[1724939604144,1e-08,60370.0,60369.0,1.711403]
[1724939604550,1e-08,60370.0,60369.0,0.3608]
[1724939604750,1e-08,60370.0,60360.0,0.3608]
[1724939605143,0.3608,60366.0,60360.0,0.3608]
[1724939605445,1e-08,60370.0,60360.0,0.3608]
[1724939605838,0.082807,60366.0,60360.0,0.3608]
[1724939606241,0.3608,60367.0,60360.0,0.3608]
[1724939607239,1e-08,60370.0,60361.0,0.082814]
[1724939607445,0.3608,60368.0,60361.0,0.082814]
[1724939608250,0.3608,60368.0,60362.0,0.082812]
[1724939608644,0.3608,60368.0,60360.0,0.3608]
[1724939608645,0.3608,60368.0,60363.0,0.082811]
[1724939608841,0.3608,60368.0,60360.0,0.3608]
[1724939609041,1e-08,60370.0,60363.0,0.08281]
[1724939609350,1e-08,60370.0,60368.0,0.3608]
[1724939609543,1e-08,60370.0,60369.0,0.082803]
[1724939610150,1e-08,60370.0,60369.0,0.443603]
[1724939611445,1e-08,60370.0,60369.0,1.540523]
[1724939611645,1e-08,60370.0,60369.0,0.940523]
[1724939611855,1e-08,60370.0,60369.0,1.623326]
[1724939612561,1e-08,60370.0,60369.0,1.540523]
[1724939612949,1e-08,60370.0,60369.0,0.940523]
[1724939614449,1e-08,60370.0,60369.0,1.623326]
[1724939614842,1e-08,60370.0,60369.0,1.706129]
[1724939615254,1e-08,60370.0,60369.0,1.788932]
[1724939615655,0.00192239,60388.0,60369.0,1.3216]
[1724939615855,3.9e-07,60388.0,60387.0,0.969934]
[1724939616059,1.2015,60419.0,60398.0,0.082762]
[1724939616254,0.47386001,60419.0,60417.0,0.082736]
[1724939616559,0.4729,60419.0,60407.0,0.08275]
[1724939616746,0.47314835,60419.0,60407.0,0.00024835]
[1724939617057,0.082736,60418.0,60407.0,0.00024835]
[1724939617258,0.082736,60418.0,60411.0,0.3608]
[1724939617647,0.11234835,60419.0,60411.0,0.3608]
[1724939618049,0.11234835,60419.0,60417.0,0.082736]
[1724939618257,0.11234835,60419.0,60418.0,0.082736]
[1724939619050,0.00024835,60419.0,60418.0,0.082736]
[1724939619255,0.00024835,60419.0,60418.0,0.443536]
[1724939619965,0.00024835,60419.0,60418.0,0.3608]
[1724939620157,0.00024835,60419.0,60415.0,0.17536]
[1724939620354,0.08298235,60419.0,60415.0,0.082739]
[1724939620861,0.00024835,60419.0,60418.0,0.082736]
[1724939621165,0.36104835,60419.0,60411.0,0.53612]
[1724939621354,0.36104835,60419.0,60411.0,0.3608]
[1724939621668,0.3608,60412.0,60407.0,0.00024835]
[1724939621959,0.082749,60408.0,60407.0,0.00024835]
[1724939622460,0.1163,60411.0,60410.0,0.082747]
[1724939622760,0.1163,60411.0,60410.0,0.443547]
[1724939627062,0.1163,60411.0,60407.0,0.00024835]
[1724939627266,0.082749,60408.0,60407.0,0.00024835]
[1724939627567,0.1163,60411.0,60410.0,0.082747]
[1724939627761,0.1163,60411.0,60407.0,0.00024835]
[1724939627970,0.082749,60408.0,60407.0,0.00024835]
[1724939628168,0.165498,60408.0,60407.0,0.00024835]
[1724939629663,1.09664,60408.0,60394.0,0.3608]
[1724939629962,0.082771,60392.0,60385.0,0.3608]
[1724939630261,0.08276,60400.0,60385.0,0.37847593]
[1724939630462,0.082769,60394.0,60393.0,0.082769]
[1724939631165,0.08300835,60400.0,60387.0,0.00024835]
[1724939631166,0.3608,60397.0,60387.0,0.00024835]
[1724939631369,0.3608,60397.0,60388.0,0.082776]
[1724939631673,0.3608,60397.0,60387.0,0.00024835]
[1724939631674,0.082771,60393.0,60392.0,0.082771]
[1724939631854,0.082771,60393.0,60387.0,0.00024835]
[1724939631855,0.165554,60388.0,60387.0,0.00024835]
[1724939632182,0.165554,60388.0,60373.0,0.3608]
[1724939632183,0.3608,60388.0,60373.0,0.3608]
[1724939632464,0.443585,60382.0,60373.0,0.3608]
[1724939633456,0.50024835,60384.0,60373.0,0.3608]
[1724939633655,0.08303135,60384.0,60373.0,0.3608]
[1724939633875,0.00024835,60384.0,60383.0,0.082784]
[1724939634065,0.00024835,60384.0,60383.0,0.443584]
[1724939635370,0.00024835,60384.0,60383.0,0.804384]
[1724939635871,0.5,60398.0,60389.0,0.082774]
[1724939636176,0.082761,60400.0,60397.0,0.082764]
[1724939636361,0.3608,60403.0,60393.0,0.44357]
[1724939636560,0.08276,60401.0,60393.0,0.3608]
[1724939636766,0.3608,60403.0,60396.0,0.082766]
[1724939637069,0.082771,60392.0,60391.0,0.00024835]
[1724939638257,0.082766,60396.0,60391.0,0.08301935]
[1724939638568,0.3608,60397.0,60391.0,0.08301935]
[1724939638768,0.199258,60402.0,60391.0,0.00024835]
[1724939638769,0.082769,60394.0,60391.0,0.00024835]
[1724939639470,0.082769,60394.0,60393.0,0.08277]
[1724939639965,0.082766,60397.0,60395.0,0.082767]
[1724939640364,0.3608,60396.0,60391.0,0.00024835]
[1724939640564,0.082771,60393.0,60391.0,0.08302035]
[1724939640865,0.082771,60393.0,60392.0,0.082771]
[1724939641459,0.3608,60396.0,60395.0,0.082767]
[1724939641663,0.86164,60403.0,60402.0,0.082758]
[1724939641866,0.00024835,60404.0,60402.0,0.3608]
[1724939642066,0.082756,60403.0,60402.0,0.443556]
[1724939642571,0.00024835,60404.0,60403.0,0.165512]
[1724939642761,0.08274,60415.0,60404.0,0.082755]
[1724939642960,0.082731,60422.0,60418.0,0.082735]
[1724939643166,0.082737,60418.0,60416.0,0.082738]
[1724939643465,0.5,60429.0,60427.0,0.082722]
[1724939643668,0.00084,60431.0,60428.0,0.3608]
[1724939643868,0.00024835,60436.0,60428.0,0.3608]
[1724939644268,0.04050462,60435.0,60434.0,0.3608]
[1724939644468,0.00024835,60436.0,60435.0,0.082712]
[1724939644670,0.00024835,60436.0,60435.0,0.579112]
[1724939644874,0.00024835,60436.0,60435.0,1.179112]
[1724939645074,0.3608,60463.0,60435.0,1.179112]
[1724939645075,0.13157516,60454.0,60435.0,1.179112]
[1724939645267,0.13157516,60456.0,60453.0,0.3608]
[1724939645467,0.3608,60463.0,60454.0,0.082686]
[1724939645667,0.04048972,60462.0,60453.0,0.3608]
[1724939645971,0.08268,60459.0,60455.0,0.3608]
[1724939646164,0.3608,60463.0,60455.0,0.3608]
[1724939646369,0.082676,60462.0,60455.0,0.3608]
[1724939646776,0.3608,60463.0,60455.0,0.3608]
[1724939646983,0.5,60461.0,60451.0,0.00024811]
[1724939647270,0.082684,60456.0,60451.0,0.00024811]
[1724939648474,0.3608,60463.0,60451.0,0.00024811]
[1724939648475,0.082688,60453.0,60451.0,0.00024811]
[1724939648668,0.582685,60455.0,60447.0,0.3608]
[1724939648872,0.5,60462.0,60447.0,0.3608]
[1724939649068,0.082685,60455.0,60452.0,0.3608]
[1724939650076,0.3608,60457.0,60447.0,0.36104811]
[1724939650281,0.5,60454.0,60447.0,0.36104811]
[1724939650477,0.582684,60456.0,60452.0,0.3608]
[1724939650673,0.082684,60456.0,60452.0,0.3608]
[1724939651277,0.00024811,60460.0,60452.0,0.3608]
[1724939651482,0.04049197,60459.0,60452.0,0.3608]
[1724939651775,0.00024811,60460.0,60452.0,0.3608]
[1724939652076,0.082683,60457.0,60452.0,0.3608]
[1724939652281,0.00024811,60460.0,60455.0,0.3608]
[1724939652483,0.00024811,60460.0,60459.0,0.082679]
[1724939652983,0.00024811,60460.0,60457.0,0.082681]
[1724939653173,0.00024811,60460.0,60455.0,0.3608]
[1724939653379,0.00024811,60460.0,60455.0,0.37815408]
[1724939653678,0.00024811,60460.0,60459.0,0.082679]
[1724939653869,0.3257,60471.0,60470.0,0.082664]
[1724939654184,0.00084,60478.0,60477.0,0.082655]
[1724939654482,0.64797845,60486.0,60477.0,0.3608]
[1724939654483,0.00084,60486.0,60477.0,0.3608]
[1724939654773,0.082653,60479.0,60478.0,0.17092]
[1724939654979,0.00024811,60485.0,60478.0,0.17092]
[1724939655181,0.00024811,60485.0,60484.0,0.082645]
[1724939655369,0.09785729,60485.0,60484.0,0.082645]
[1724939655571,0.00024811,60485.0,60484.0,0.082645]
[1724939655777,0.00024811,60485.0,60484.0,0.253565]
[1724939655976,0.00024811,60485.0,60484.0,0.082645]
[1724939656182,0.00024811,60485.0,60484.0,0.253565]
[1724939656573,0.00024811,60485.0,60484.0,1.349565]
[1724939656878,1.1e-07,60485.0,60484.0,0.59664197]
[1724939657089,1.1e-07,60485.0,60484.0,1.36752197]
[1724939657588,1.1e-07,60485.0,60484.0,1.19664197]
[1724939657876,1.1e-07,60485.0,60484.0,1.36752197]
[1724939658083,1.1e-07,60485.0,60484.0,0.59664197]
[1724939658283,1.1e-07,60485.0,60484.0,1.36752197]
[1724939658684,1.1e-07,60485.0,60484.0,1.19664197]
[1724939658877,1.1e-07,60485.0,60484.0,0.59664197]
[1724939659074,1.1e-07,60485.0,60484.0,0.17088]
[1724939659380,1.1e-07,60485.0,60484.0,0.17112]
[1724939659773,1.1e-07,60485.0,60484.0,0.253765]